Workbook

Sheet Sheet1
A1: INSTRUCTIONS: Use this form when a single information collection document involves multiple reporting and recordkeeping requirements. The totals of the figures in cols. should be entered in item 13 of OMB-83-I: cols. (D) &/or (I) = 13a (respondent is only counted once); cols. F & I = 13b; cols. H & K = 13c. (F)Total/(D)Total = (E)Average (H)Total/(F)Total = (G)Average (K)Total/(I)Total = (J)Average NOTE: The columns will calculate automatically. If Col. E's response is something other than annually, i.e., 1/6 years, list as "1/6" & decimal will display. | I1: TITLE OF INFORMATION COLLECTION DOCUMENT | O1: OMB NO. | P1: 0560-0236
I3: Direct Loan Servicing - Regular
O4: DATE PREPARED
O5: 2024-08-30
A10: IDENTIFICATION OF REPORTING OR RECORDKEEPING REQUIREMENT | H10: ANNUAL BURDEN
H12: REPORTS | N12: RECORDS | Q12: RESPONDENT COST
L14: TOTAL BURDEN HOURS | P14: TOTAL
G15: FORMS NO (S) | H15: NO. OF | I15: NO OF | J15: TOTAL ANNUAL | K15: HOURS | L15: (Col. F x G) | N15: NO. OF | O15: ANNUAL | P15: RECORD- | Q15: COST | R15: TOTAL
A16: SECTION OF | B16: DESCRIPTION | G16: (If "none" | H16: RESPONDENTS | I16: RESPONSES | J16: RESPONSES | K16: PER | L16: (H) | N16: RECORD- | O16: HOURS PER | P16: KEEPING HOURS | Q16: PER | R16: COST
A17: REGS. | G17: so state) | I17: PER | J17: (Col. D x E) | K17: RESPONSE | N17: KEEPERS | O17: RECORD- | P17: (Col. I x J) | Q17: HOUR | R17: (Col. H x L)
I18: RESPONDENT | L18: EXEMPT | M18: NON-EXEMPT | O18: KEEPER
A19: (A) | B19: (B) | G19: (C) | H19: (D) | I19: (E) | J19: (F) | K19: (G) | N19: (I) | O19: (J) | P19: (K) | Q19: (L) | R19: (M)
A20: 765.403; 766.204 | B20: Notification of approval and borrower responsibilities | G20: 2025 (Farmer) | H20: 65 | I20: 1 | J20: =SUM(H20*I20) -> 65 | K20: 0.33 | M20: =SUM(J20*K20) -> 21 | Q20: $37.59 | R20: =SUM(M20*Q20) -> 806 | U20: 21
A21: 765.302 | B21: Agreement for disposition of security/release of proceeds | G21: 2040 (Farmer) | H21: 65,684 | I21: 1 | J21: =SUM(H21*I21) -> 65,684 | K21: 0.33 | M21: 21,676 | Q21: $37.59 | R21: 814,790 | U21: 21676
A22: 765.302 | B22: Update of agreement for disposition/release of proceeds | G22: 2040 (Farmer) | H22: 4,379 | I22: 2 | J22: 8,758 | K22: 0.17 | M22: 1,454 | Q22: $37.59 | R22: 54,649 | U22: 1454
A23: 765.253; 765.351; 765.401 | B23: Application for partial release or consent | G23: 2061 (Farmer) | H23: 5,500 | I23: 1 | J23: =SUM(H23*I23) -> 5,500 | K23: 0.50 | M23: =SUM(J23*K23) -> 2,750 | Q23: $37.59 | R23: =SUM(M23*Q23) -> 103,373 | U23: 377
A24: 765.205; 765.206 | B24: Application for subordination of security for commercial credit | G24: 2062 (Farmer) | H24: 2,182 | I24: 1 | J24: =SUM(H24*I24) -> 2,182 | K24: 0.50 | M24: 1,091 | Q24: $37.59 | R24: 41,011 | U24: 1091
A25: 765.152 (b) (7) | B25: Cancelling undisbursed loan funds | G25: 2425 (Farmer) | H25: 500 | I25: 1 | J25: 500 | K25: 0.17 | M25: 83 | Q25: $37.59 | R25: 3,120 | U25: 83
A26: 765.302 (d) | B26: Temporary amendment-consent to payment of proceeds from sale | G26: 2450 (Farmer) | H26: 500 | I26: 1 | J26: 500 | K26: 0.17 | M26: 83 | Q26: $37.59 | R26: =SUM(M26*Q26) -> 3,120 | U26: 83
A27: 765.305 (b) | B27: Assignment, acceptance/release for wool and mohair/borrower | G27: 2465 (Farmer) | H27: 25 | I27: 1 | J27: 25 | K27: 0.17 | M27: 4 | Q27: $37.59 | R27: =SUM(M27*Q27) -> 156 | U27: 4
A28: 765.305 (b) | B28: Assignment, acceptance/release for wool and mohair/borrower | G28: 2465 (Business) | H28: 25 | I28: 1 | J28: 25 | K28: 0.17 | M28: =SUM(J28*K28) -> 4 | Q28: $38.61 | R28: =SUM(M28*Q28) -> 160
A29: 765.401 (b) | B29: Transfer of real estate security/borrower | G29: 2476 (Farmer) | H29: 255 | I29: 1 | J29: 255 | K29: 0.25 | M29: 64 | Q29: $37.59 | R29: 2,396 | U29: 64
A30: 765.401 (b) | B30: Transfer of real estate security/transferee | G30: 2476 (Farmer) | H30: 255 | I30: 1 | J30: 255 | K30: 0.25 | M30: 64 | Q30: $37.59 | R30: 2,396 | U30: 64
A31: 765.401 (a) (2) | B31: Assumption Agreement | G31: 2489 (Farmer) | H31: 60 | I31: 1 | J31: 60 | K31: 0.33 | M31: 20 | Q31: $37.59 | R31: 744 | U31: 20
A32: 765.101 (a) | B32: Lenders’ loan underwriting standards | G32: Non-form (Business) | H32: 700 | I32: 1 | J32: 700 | K32: 0.33 | M32: 231 | Q32: $38.61 | R32: =SUM(M32*Q32) -> 8,919 | U32: 401
A33: 765.101 (d) | B33: Lender review of borrower’s prospectus | G33: Non-form (Business) | H33: 4,824 | I33: 1 | J33: 4,824 | K33: 0.50 | M33: 2,412 | Q33: $38.61 | R33: =SUM(M33*Q33) -> 93,127 | U33: 4
A34: 765.101 (e) | B34: Lender response to borrower’s prospectus | G34: Non-form (Business) | H34: 3,618 | I34: 1 | J34: 3,618 | K34: 0.08 | M34: 301 | Q34: $38.61 | R34: =SUM(M34*Q34) -> 11,636 | U34: 40
A35: 765.101 | B35: Borrower documentation of inability to graduate | G35: Non-form (Farmer) | H35: 2,414 | I35: 1 | J35: 2,414 | K35: 0.17 | M35: 401 | Q35: $37.59 | R35: 15,063 | U35: 160
A36: 765.101 | B36: Lender documentation of borrower inability to graduate | G36: Non-form (Business) | H36: 2,414 | I36: 1 | J36: 2,414 | K36: 0.25 | M36: 604 | Q36: $38.61 | R36: 23,301 | U36: 61
A37: 765.155 (c) | B37: Borrower request for refund of overpayment | G37: Non-form (Farmer) | H37: 25 | I37: 1 | J37: 25 | K37: 0.17 | M37: 4 | Q37: $37.59 | R37: 156 | U37: 150
A38: 765.205 (c) | B38: Creditor consent to second subordination | G38: Non-form (Business) | H38: 238 | I38: 1 | J38: 238 | K38: 0.17 | M38: 238 | Q38: $38.61 | R38: =SUM(M38*Q38) -> 9,189 | U38: 228
A39: 765.202 (c ) | B39: Assignment of insurance proceeds from 2nd subordination | G39: Non-form (Farmer) | H39: 238 | I39: 1 | J39: 238 | K39: 0.17 | M39: 40 | Q39: $37.59 | R39: =SUM(M39*Q39) -> 1,485 | U39: 84
A40: 765.206 (b) (2) | B40: Operating plan for agency to consent to junior lien | G40: Non-form (Farmer) | H40: 964 | I40: 1 | J40: 964 | K40: 0.17 | M40: =SUM(J40*K40) -> 160 | Q40: $37.59 | R40: =SUM(M40*Q40) -> 6,015 | U40: 21
A41: 765.206 (b) (4) | B41: Junior Lienhoolder Agreement | G41: Non-form (Business) | H41: 964 | I41: 1 | J41: =SUM(H41*I41) -> 964 | K41: 0.17 | M41: =SUM(J41*K41) -> 160 | Q41: $38.61 | R41: =SUM(M41*Q41) -> 6,179 | T41: 11636 | U41: 32
A42: 765.207 | B42: Borrower request for severance agreement | G42: Non-form (Farmer) | H42: 365 | I42: 1 | J42: 365 | K42: 0.17 | M42: 61 | Q42: $37.59 | R42: 2,278
A43: 765.251, 765.252 | B43: Request to lease security – copy of lease | G43: Non-form (Farmer) | H43: 455 | I43: 1 | J43: 455 | K43: 0.33 | M43: 150 | Q43: $37.59 | R43: 5,644
A44: 765.251, 765.253 | B44: Request to cease operating security – copy of lease | G44: Non-form (Farmer) | H44: 455 | I44: 1 | J44: 455 | K44: 0.50 | M44: 228 | Q44: $37.59 | R44: 8,552
A45: 765.301, 765.303 | B45: Borrower request for lienholder consent to use proceeds | G45: Non-form (Farmer) | H45: 509 | I45: 1 | J45: 509 | K45: 0.17 | M45: 84 | Q45: $37.59 | R45: =SUM(M45*Q45) -> 3,176
A46: 765.301, 765.303 | B46: Lienholder consent to use proceeds | G46: Non-form (Business) | H46: 764 | I46: 1 | J46: 764 | K46: 0.25 | M46: 191 | Q46: $38.61 | R46: =SUM(M46*Q46) -> 7,375
A47: 765.351 (b) (2) | B47: Borrower requested use proceeds from timber, gravel, etc. | G47: Non-form (Farmer) | H47: 128 | I47: 1 | J47: 128 | K47: 0.17 | M47: 21 | Q47: $37.59 | R47: =SUM(M47*Q47) -> 799
A48: 765.351 (b) (2) | B48: Lienholder consent to use timber, gravel, etc., proceeds | G48: Non-form (Business) | H48: 192 | I48: 1 | J48: 192 | K48: 0.25 | M48: 48 | Q48: $38.61 | R48: 1,853
A49: 765.351 (b) (2) | B49: Borrower assignment of proceeds from timber, etc. to agency | G49: Non-form (Farmer) | H49: 128 | I49: 1 | J49: 128 | K49: 0.25 | M49: 32 | Q49: $37.59 | R49: 1,203
A50: 765.351 (d) (2) | B50: Assignment of Deed of Trust As Collateral-CA Form Only | G50: 2400-6 CA (Farmer) | H50: 13 | I50: 1 | J50: 13 | K50: 0.25 | M50: 3 | Q50: $37.59 | R50: 122
A51: 765.351 (d) | B51: Sale of real estate – copy of contract for deed | G51: Non-form (Farmer) | H51: 13 | I51: 1 | J51: 13 | K51: 0.17 | M51: 2 | Q51: $37.59 | R51: =SUM(M51*Q51) -> 81
A52: 765.351 (e) | B52: Borrower request to exchange real estate property | G52: Non-form (Farmer) | H52: 13 | I52: 1 | J52: 13 | K52: 0.17 | M52: 2 | Q52: $37.59 | R52: =SUM(M52*Q52) -> 81
A53: 765.406 (b) | B53: Request of obligated party to withdraw | G53: Non-form (Farmer) | H53: 651 | I53: 1 | J53: 651 | K53: 0.50 | M53: =SUM(J53*K53) -> 326 | Q53: $37.59 | R53: =SUM(M53*Q53) -> 12,236
B54: SUBTOTAL | H54: =SUM(H20:H53) -> 99,515 | J54: =SUM(J20:J53) -> 103,894 | M54: =SUM(M20:M53) -> 33,012 | P54: =SUM(P20:P53) -> 0.00 | R54: =SUM(R20:R53) -> 1,245,192
B55: TOTAL OF ALL PAGES | J55: =SUM(J54) -> 103,894 | M55: =SUM(M54) -> 33,012 | P55: =SUM(P54) -> 0.00 | R55: =SUM(R54) -> 1,245,192
A56: TOTAL - COLUMNS "F" AND "I" = OMB 83-I, 13b; COLUMNS "H" AND "K" = OMB 83-I, 13c | J56: =SUM(J55+N55) -> 103,894 | M56: =SUM(M55+P55) -> 33,012
